[Event "Panevezys ELITE Open 2021"]
[Site "Panevezys, Lithuania"]
[Date "2021.08.04"]
[Round "7.1"]
[White "Butvilas, Aistis"]
[Black "Meshkovs, Nikita"]
[Result "1/2-1/2"]
[WhiteElo "2088"]
[BlackElo "2568"]
[PlyCount "153"]
[EventDate "2021.??.??"]
[TimeControl "90/40+30:0"]
[WhiteClock "0:12:21"]
[BlackClock "0:01:32"]

1. d4 {[%emt 0:00:01]} Nf6 {[%emt 0:00:17]} 2. c4 {[%emt 0:00:07]} c5 {[%emt 0:
00:06]} 3. d5 {[%emt 0:00:06]} g6 {[%emt 0:00:07]} 4. Nc3 {[%emt 0:00:08]} Bg7
{[%emt 0:00:05]} 5. e4 {[%emt 0:00:53]} d6 {[%emt 0:00:07]} 6. Nf3 {[%emt 0:00:
14]} O-O {[%emt 0:00:11]} 7. Be2 {[%emt 0:00:10]} e6 {[%emt 0:00:11]} 8. Nd2 {
[%emt 0:01:17]} Na6 {[%emt 0:04:21]} 9. O-O {[%emt 0:00:13]} Nc7 {[%emt 0:01:
45]} 10. Re1 {[%emt 0:04:23]} Rb8 {[%emt 0:04:23]} 11. a4 {[%emt 0:00:31]} Na6
{[%emt 0:00:56]} 12. Nf1 {[%emt 0:01:47]} e5 {[%emt 0:03:59]} 13. Ng3 {[%emt 0:
00:43]} Nb4 {[%emt 0:01:36]} 14. h4 {[%emt 0:01:05]} Ne8 {[%emt 0:00:54]} 15.
h5 {[%emt 0:00:45]} Qh4 {[%emt 0:01:14]} 16. hxg6 {[%emt 0:03:17]} fxg6 {[%emt
0:01:46]} 17. Be3 {[%emt 0:00:51]} Bh6 {[%emt 0:06:19]} 18. Bxh6 {[%emt 0:04:
09]} Qxh6 {[%emt 0:00:03]} 19. Ra3 {[%emt 0:00:28]} a5 {[%emt 0:04:53]} 20. Nb5
{[%emt 0:00:39]} Rf4 {[%emt 0:06:57]} 21. Bf3 {[%emt 0:04:54]} Rh4 {[%emt 0:02:
10]} 22. Qc1 {[%emt 0:02:19]} g5 {[%emt 0:00:02]} 23. Bd1 {[%emt 0:00:20]} Bd7
{[%emt 0:01:56]} 24. Qd2 {[%emt 0:03:28]} Ng7 {[%emt 0:04:04]} 25. Nc7 {[%emt
0:01:12]} Rf4 {[%emt 0:02:51]} 26. f3 {[%emt 0:09:53]} Rc8 {[%emt 0:01:55]} 27.
Ne6 {[%emt 0:00:47]} Bxe6 {[%emt 0:00:23]} 28. dxe6 {[%emt 0:00:02]} Qxe6 {
[%emt 0:00:24]} 29. Ne2 {[%emt 0:00:08]} Rf6 {[%emt 0:02:31]} 30. Qxg5 {[%emt
0:00:08]} Rg6 {[%emt 0:01:03]} 31. Qh4 {[%emt 0:00:52]} Rh6 {[%emt 0:02:22]}
32. Qg5 {[%emt 0:04:00]} Kh8 {[%emt 0:00:17]} 33. f4 {[%emt 0:00:17]} Rg6 {
[%emt 0:11:36]} 34. Qh4 {[%emt 0:00:18]} Qg4 {[%emt 0:03:21]} 35. Qxg4 {[%emt
0:01:22]} Rxg4 {[%emt 0:00:01]} 36. fxe5 {[%emt 0:01:21]} dxe5 {[%emt 0:01:08]}
37. Nc3 {[%emt 0:00:18]} Rg5 {[%emt 0:03:10]} 38. Nd5 {[%emt 0:00:24]} Ne6 {
[%emt 0:00:01]} 39. Rf1 {[%emt 0:05:02]} Rcg8 {[%emt 0:07:51]} 40. g4 {[%emt 0:
00:20]} h5 {[%emt 0:05:45]} 41. Rf6 {[%emt 0:00:38]} R8g6 {[%emt 0:09:28]} 42.
Rxg6 {[%emt 0:01:00]} Rxg6 {[%emt 0:00:01]} 43. Rh3 {[%emt 0:00:17]} Kg7 {
[%emt 0:04:56]} 44. Rxh5 {[%emt 0:00:28]} Nd3 {[%emt 0:00:01]} 45. Ne7 {[%emt
0:06:34]} Rg5 {[%emt 0:00:55]} 46. Nf5+ {[%emt 0:00:24]} Kf6 {[%emt 0:00:25]}
47. Rh2 {[%emt 0:02:32]} Rg8 {[%emt 0:02:13]} 48. Rh6+ {[%emt 0:03:46]} Rg6 {
[%emt 0:00:29]} 49. Rh2 {[%emt 0:01:15]} Kg5 {[%emt 0:02:42]} 50. Rd2 {[%emt 0:
01:41]} Nef4 {[%emt 0:01:16]} 51. b3 {[%emt 0:03:06]} Rg8 {[%emt 0:01:16]} 52.
Ne3 {[%emt 0:02:45]} Rh8 {[%emt 0:04:22]} 53. Rh2 {[%emt 0:05:25]} Nh3+ {[%emt
0:06:06]} 54. Kg2 {[%emt 0:01:22]} Ndf2 {[%emt 0:00:02]} 55. Kf3 {[%emt 0:09:
01]} Rf8+ {[%emt 0:13:58]} 56. Nf5 {[%emt 0:02:24]} Rd8 {[%emt 0:02:00]} 57.
Be2 {[%emt 0:02:46]} Rd2 {[%emt 0:00:44]} 58. Bf1 {[%emt 0:15:44]} Ng1+ {[%emt
0:00:08]} 59. Ke3 {[%emt 0:00:01]} Nxg4+ {[%emt 0:00:10]} 60. Kxd2 {[%emt 0:00:
07]} Nf3+ {[%emt 0:00:20]} 61. Kc3 {[%emt 0:03:45]} Nfxh2 {[%emt 0:00:02]} 62.
Bg2 {[%emt 0:05:06]} Kf4 {[%emt 0:06:06]} 63. Nd6 {[%emt 0:01:03]} b6 {[%emt 0:
00:01]} 64. Bh3 {[%emt 0:00:23]} Nf6 {[%emt 0:01:09]} 65. Bf5 {[%emt 0:00:20]}
Nf3 {[%emt 0:00:04]} 66. Nc8 {[%emt 0:00:31]} Ng5 {[%emt 0:00:01]} 67. Nxb6 {
[%emt 0:00:23]} Ngxe4+ {[%emt 0:00:02]} 68. Bxe4 {[%emt 0:00:22]} Nxe4+ {[%emt
0:00:02]} 69. Kd3 {[%emt 0:00:38]} Kf3 {[%emt 0:01:34]} 70. Nd7 {[%emt 0:01:04]
} Nf2+ {[%emt 0:00:02]} 71. Kd2 {[%emt 0:01:46]} e4 {[%emt 0:00:02]} 72. Nxc5 {
[%emt 0:03:52]} e3+ {[%emt 0:01:10]} 73. Ke1 {[%emt 0:02:56]} Ng4 {[%emt 0:01:
03]} 74. Nd3 {[%emt 0:01:27]} Ke4 {[%emt 0:00:50]} 75. Ke2 {[%emt 0:00:09]} Nf6
{[%emt 0:00:13]} 76. Nc5+ {[%emt 0:02:06]} Kd4 {[%emt 0:00:01]} 77. Ne6+ {
[%emt 0:00:24]} 1/2-1/2

[Event "Panevezys ELITE Open 2021"]
[Site "Panevezys, Lithuania"]
[Date "2021.08.04"]
[Round "7.2"]
[White "Brazdzionis, Andrius"]
[Black "Sulskis, Sarunas"]
[Result "1/2-1/2"]
[WhiteElo "2321"]
[BlackElo "2523"]
[PlyCount "77"]
[EventDate "2021.??.??"]
[TimeControl "90/40+30:0"]
[WhiteClock "0:27:43"]
[BlackClock "0:08:52"]

1. d4 {[%emt 0:00:23]} d5 {[%emt 0:00:13]} 2. c4 {[%emt 0:00:20]} c6 {[%emt 0:
00:15]} 3. Nf3 {[%emt 0:01:24]} Nf6 {[%emt 0:00:17]} 4. Qc2 {[%emt 0:01:11]}
dxc4 {[%emt 0:02:17]} 5. Qxc4 {[%emt 0:00:11]} Bf5 {[%emt 0:02:09]} 6. g3 {
[%emt 0:00:12]} e6 {[%emt 0:00:17]} 7. Bg2 {[%emt 0:00:17]} Be7 {[%emt 0:03:53]
} 8. O-O {[%emt 0:00:21]} O-O {[%emt 0:00:31]} 9. Qb3 {[%emt 0:00:41]} Qb6 {
[%emt 0:04:48]} 10. Nbd2 {[%emt 0:00:39]} Nbd7 {[%emt 0:25:34]} 11. Nc4 {[%emt
0:00:27]} Qa6 {[%emt 0:01:04]} 12. Bf4 {[%emt 0:00:23]} Be4 {[%emt 0:05:53]}
13. Nd6 {[%emt 0:07:52]} Bxd6 {[%emt 0:02:06]} 14. Bxd6 {[%emt 0:00:06]} Rfc8 {
[%emt 0:00:59]} 15. Qe3 {[%emt 0:11:56]} Qb5 {[%emt 0:03:01]} 16. b3 {[%emt 0:
02:03]} a5 {[%emt 0:05:28]} 17. a4 {[%emt 0:05:33]} Qd5 {[%emt 0:04:17]} 18.
Ba3 {[%emt 0:03:59]} b5 {[%emt 0:01:19]} 19. Rfc1 {[%emt 0:00:56]} Rab8 {[%emt
0:01:29]} 20. Ne1 {[%emt 0:02:47]} Bxg2 {[%emt 0:07:51]} 21. Nxg2 {[%emt 0:00:
06]} Ng4 {[%emt 0:03:29]} 22. Qf4 {[%emt 0:09:20]} Qh5 {[%emt 0:00:53]} 23. h4
{[%emt 0:00:18]} Ngf6 {[%emt 0:03:00]} 24. Bd6 {[%emt 0:02:14]} bxa4 {[%emt 0:
03:29]} 25. bxa4 {[%emt 0:01:50]} Rb2 {[%emt 0:01:59]} 26. Qf3 {[%emt 0:09:33]}
Qxf3 {[%emt 0:01:42]} 27. exf3 {[%emt 0:00:11]} Nd5 {[%emt 0:00:28]} 28. Ne3 {
[%emt 0:04:14]} N7b6 {[%emt 0:00:39]} 29. Nxd5 Nxd5 30. Rc4 h6 31. Rc5 Nb6 32.
Bf4 Nd5 33. Bd6 Nb6 34. Bf4 Nd5 {[%emt 0:01:44]} 35. Bd6 {[%emt 0:14:47]} Nb6 {
[%emt 0:01:08]} 36. Bf4 {[%emt 0:00:10]} Nd5 {[%emt 0:01:00]} 37. Bd6 {[%emt 0:
00:16]} Nb6 {[%emt 0:01:52]} 38. Bf4 {[%emt 0:00:06]} Nd5 {[%emt 0:00:19]} 39.
Bd6 {[%emt 0:01:03]} 1/2-1/2

[Event "Panevezys ELITE Open 2021"]
[Site "Panevezys, Lithuania"]
[Date "2021.08.04"]
[Round "7.3"]
[White "Kazakouski, Valery"]
[Black "Greicius, Pijus"]
[Result "1-0"]
[WhiteElo "2499"]
[BlackElo "1902"]
[PlyCount "55"]
[EventDate "2021.??.??"]
[TimeControl "90/40+30:0"]
[WhiteClock "0:25:57"]
[BlackClock "0:22:03"]

1. Nf3 {[%emt 0:04:04]} d5 {[%emt 0:00:14]} 2. c4 {[%emt 0:00:08]} d4 {[%emt 0:
00:10]} 3. b4 {[%emt 0:00:21]} f6 {[%emt 0:00:12]} 4. Na3 {[%emt 0:00:42]} Na6
{[%emt 0:01:42]} 5. Nc2 {[%emt 0:12:18]} e5 {[%emt 0:00:30]} 6. Rb1 {[%emt 0:
00:25]} Be6 {[%emt 0:03:10]} 7. d3 {[%emt 0:01:14]} Ne7 {[%emt 0:02:53]} 8. g3
{[%emt 0:06:38]} Nf5 {[%emt 0:19:36]} 9. Bg2 {[%emt 0:01:07]} Rb8 {[%emt 0:04:
36]} 10. O-O {[%emt 0:04:28]} Be7 {[%emt 0:04:39]} 11. e3 {[%emt 0:10:36]} dxe3
{[%emt 0:00:33]} 12. fxe3 {[%emt 0:00:55]} O-O {[%emt 0:00:32]} 13. Qe2 {[%emt
0:06:36]} Qd7 {[%emt 0:08:29]} 14. d4 {[%emt 0:05:45]} exd4 {[%emt 0:01:13]}
15. exd4 {[%emt 0:00:18]} c6 {[%emt 0:02:34]} 16. Re1 {[%emt 0:03:54]} Kf7 {
[%emt 0:12:41]} 17. d5 {[%emt 0:02:47]} cxd5 {[%emt 0:01:07]} 18. Nfd4 {[%emt
0:00:20]} Nxd4 {[%emt 0:01:18]} 19. Nxd4 {[%emt 0:00:08]} Bg4 {[%emt 0:06:19]}
20. Bxd5+ {[%emt 0:00:14]} Ke8 {[%emt 0:00:08]} 21. Qe4 {[%emt 0:03:52]} Nc7 {
[%emt 0:01:02]} 22. Bf4 {[%emt 0:01:41]} Nxd5 {[%emt 0:03:50]} 23. cxd5 {[%emt
0:01:06]} Kf7 {[%emt 0:00:33]} 24. Bxb8 {[%emt 0:05:28]} Rxb8 {[%emt 0:00:07]}
25. Qxh7 {[%emt 0:01:35]} Bf8 {[%emt 0:00:50]} 26. Qe4 {[%emt 0:00:27]} Rc8 {
[%emt 0:02:54]} 27. Ne6 {[%emt 0:00:41]} Bh5 {[%emt 0:00:14]} 28. Qf5 {[%emt 0:
00:33]} 1-0

[Event "Panevezys ELITE Open 2021"]
[Site "Panevezys, Lithuania"]
[Date "2021.08.04"]
[Round "7.4"]
[White "Steponavicius, Stasys"]
[Black "Salna, Aleksandras"]
[Result "0-1"]
[WhiteElo "2209"]
[BlackElo "2166"]
[PlyCount "139"]
[EventDate "2021.??.??"]
[TimeControl "90/40+30:0"]
[BlackClock "0:38:17"]

1. d4 {[%emt 0:00:02]} d5 {[%emt 0:00:12]} 2. c4 {[%emt 0:00:11]} c6 {[%emt 0:
00:06]} 3. Nc3 {[%emt 0:00:39]} Nf6 {[%emt 0:00:08]} 4. Nf3 {[%emt 0:00:14]} a6
{[%emt 0:00:09]} 5. c5 {[%emt 0:01:15]} Nbd7 {[%emt 0:00:37]} 6. Bf4 {[%emt 0:
01:10]} Nh5 {[%emt 0:00:06]} 7. Qd2 {[%emt 0:00:19]} h6 {[%emt 0:04:17]} 8. h3
{[%emt 0:07:13]} Nxf4 {[%emt 0:00:10]} 9. Qxf4 {[%emt 0:00:07]} g5 {[%emt 0:01:
48]} 10. Qd2 {[%emt 0:00:59]} Bg7 {[%emt 0:02:00]} 11. e4 {[%emt 0:02:36]} dxe4
{[%emt 0:00:56]} 12. Nxe4 {[%emt 0:00:07]} O-O {[%emt 0:02:48]} 13. Rd1 {[%emt
0:08:55]} Nf6 {[%emt 0:03:52]} 14. Nxf6+ {[%emt 0:07:27]} exf6 {[%emt 0:00:28]}
15. Be2 {[%emt 0:01:31]} Be6 {[%emt 0:01:23]} 16. b3 {[%emt 0:02:34]} Bd5 {
[%emt 0:02:31]} 17. O-O {[%emt 0:00:22]} Re8 {[%emt 0:00:58]} 18. Bc4 {[%emt 0:
10:01]} Qd7 {[%emt 0:01:57]} 19. Bxd5 {[%emt 0:02:14]} Qxd5 {[%emt 0:00:07]}
20. Qb4 {[%emt 0:00:06]} Re7 {[%emt 0:01:24]} 21. Nd2 {[%emt 0:01:04]} a5 {
[%emt 0:03:16]} 22. Qc3 {[%emt 0:01:33]} f5 {[%emt 0:00:57]} 23. Nc4 {[%emt 0:
09:09]} Qxc5 {[%emt 0:02:16]} 24. Qd3 {[%emt 0:01:05]} Qb5 {[%emt 0:04:35]} 25.
d5 {[%emt 0:11:33]} Rd7 {[%emt 0:07:29]} 26. a4 {[%emt 0:09:38]} Qc5 {[%emt 0:
01:52]} 27. Qxf5 {[%emt 0:00:31]} Rxd5 {[%emt 0:02:27]} 28. Rxd5 {[%emt 0:00:
15]} Qxd5 {[%emt 0:00:07]} 29. Qxd5 {[%emt 0:03:39]} cxd5 {[%emt 0:00:07]} 30.
Nb6 {[%emt 0:00:16]} Rd8 {[%emt 0:00:58]} 31. Rd1 {[%emt 0:00:14]} d4 {[%emt 0:
00:08]} 32. Nc4 {[%emt 0:00:18]} Rd5 {[%emt 0:04:23]} 33. g4 {[%emt 0:01:17]}
b5 {[%emt 0:01:54]} 34. axb5 {[%emt 0:00:52]} Rxb5 {[%emt 0:00:07]} 35. Rd3 {
[%emt 0:00:07]} h5 {[%emt 0:02:56]} 36. Nd6 {[%emt 0:02:20]} Rd5 {[%emt 0:03:
39]} 37. Nf5 {[%emt 0:00:31]} Bf6 {[%emt 0:03:22]} 38. Kg2 {[%emt 0:02:28]} h4
{[%emt 0:01:50]} 39. f4 {[%emt 0:03:50]} gxf4 {[%emt 0:03:30]} 40. Kf3 {[%emt
0:00:19]} Kh7 {[%emt 0:02:08]} 41. Kxf4 {[%emt 0:06:35]} Kg6 {[%emt 0:00:51]}
42. Ke4 {[%emt 0:04:41]} Rb5 {[%emt 0:00:36]} 43. Nd6 {[%emt 0:04:52]} Rc5 {
[%emt 0:04:48]} 44. Nf5 {[%emt 0:14:29]} Kg5 {[%emt 0:02:11]} 45. Rf3 {[%emt 0:
01:39]} Re5+ {[%emt 0:04:40]} 46. Kd3 {[%emt 0:00:15]} Rb5 {[%emt 0:04:45]} 47.
Nxd4 {[%emt 0:06:38]} Rb4 {[%emt 0:00:34]} 48. Rf5+ {[%emt 0:00:11]} Kg6 {
[%emt 0:00:09]} 49. Ne2 {[%emt 0:00:10]} Rxb3+ {[%emt 0:01:11]} 50. Kc2 {[%emt
0:04:37]} Rb2+ {[%emt 0:00:05]} 51. Kd1 {[%emt 0:00:51]} Bg5 {[%emt 0:03:40]}
52. Rxa5 {[%emt 0:01:26]} Rb3 {[%emt 0:00:22]} 53. Ra6+ {[%emt 0:00:40]} f6 {
[%emt 0:00:31]} 54. Ke1 {[%emt 0:00:19]} Rxh3 {[%emt 0:00:09]} 55. Kf2 {[%emt
0:00:17]} Rd3 {[%emt 0:02:03]} 56. Kg2 {[%emt 0:01:18]} h3+ {[%emt 0:02:56]}
57. Kh2 {[%emt 0:00:42]} Re3 {[%emt 0:00:15]} 58. Ra2 {[%emt 0:00:23]} Kf7 {
[%emt 0:01:05]} 59. Rb2 {[%emt 0:00:38]} Ke6 {[%emt 0:00:19]} 60. Ra2 {[%emt 0:
00:28]} Kd5 {[%emt 0:00:36]} 61. Kh1 {[%emt 0:00:26]} Ke4 {[%emt 0:01:07]} 62.
Ra4+ {[%emt 0:00:27]} Ke5 {[%emt 0:02:41]} 63. Ra5+ {[%emt 0:00:08]} Kd6 {
[%emt 0:00:36]} 64. Nd4 {[%emt 0:00:49]} Rd3 {[%emt 0:01:33]} 65. Nf5+ {[%emt
0:00:36]} Ke6 {[%emt 0:00:43]} 66. Ng7+ {[%emt 0:00:17]} Kd7 {[%emt 0:00:47]}
67. Ra4 {[%emt 0:00:51]} Be3 {[%emt 0:01:34]} 68. Nf5 {[%emt 0:00:25]} Bb6 {
[%emt 0:00:26]} 69. Rb4 {[%emt 0:00:28]} Kc6 {[%emt 0:01:10]} 70. Rf4 {[%emt 0:
00:41]} 0-1

[Event "Panevezys ELITE Open 2021"]
[Site "Panevezys, Lithuania"]
[Date "2021.08.04"]
[Round "7.5"]
[White "Kalvaitis, Sigitas"]
[Black "Milovs, Daniels"]
[Result "1-0"]
[WhiteElo "2164"]
[BlackElo "1743"]
[PlyCount "47"]
[EventDate "2021.??.??"]
[TimeControl "90/40+30:0"]
[WhiteClock "0:59:48"]
[BlackClock "0:52:57"]

1. e4 {[%emt 0:00:02]} e6 {[%emt 0:00:22]} 2. d4 {[%emt 0:00:09]} d5 {[%emt 0:
00:01]} 3. e5 {[%emt 0:00:12]} c5 {[%emt 0:00:03]} 4. c3 {[%emt 0:00:05]} Nc6 {
[%emt 0:00:02]} 5. Nf3 {[%emt 0:00:06]} Qb6 {[%emt 0:00:02]} 6. Na3 {[%emt 0:
00:34]} cxd4 {[%emt 0:10:43]} 7. cxd4 {[%emt 0:00:04]} Nge7 {[%emt 0:04:27]} 8.
Nc2 {[%emt 0:04:44]} Nf5 {[%emt 0:04:42]} 9. Bd3 {[%emt 0:00:07]} Bb4+ {[%emt
0:03:13]} 10. Kf1 {[%emt 0:04:03]} Be7 {[%emt 0:00:21]} 11. g4 {[%emt 0:02:28]}
Nh4 {[%emt 0:00:37]} 12. Nxh4 {[%emt 0:04:29]} Bxh4 {[%emt 0:00:08]} 13. Be3 {
[%emt 0:01:29]} Qxb2 {[%emt 0:06:58]} 14. g5 {[%emt 0:05:18]} Qc3 {[%emt 0:02:
33]} 15. Rb1 {[%emt 0:03:09]} Ne7 {[%emt 0:02:58]} 16. Rb3 {[%emt 0:04:28]} Qa5
{[%emt 0:04:39]} 17. Qh5 {[%emt 0:01:47]} Nf5 {[%emt 0:01:05]} 18. Bxf5 {[%emt
0:00:19]} exf5 {[%emt 0:00:05]} 19. Qxh4 {[%emt 0:01:38]} Qxa2 {[%emt 0:00:27]}
20. Rc3 {[%emt 0:00:20]} Be6 {[%emt 0:01:01]} 21. Kg2 {[%emt 0:01:37]} Qb2 {
[%emt 0:01:28]} 22. Bd2 {[%emt 0:02:19]} a5 {[%emt 0:00:57]} 23. g6 {[%emt 0:
02:47]} Qa1 {[%emt 0:02:10]} 24. Rd1 {[%emt 0:00:10]} 1-0

[Event "Panevezys ELITE Open 2021"]
[Site "Panevezys, Lithuania"]
[Date "2021.08.04"]
[Round "7.7"]
[White "Sedykh, Stakhey"]
[Black "Juksta, Karolis"]
[Result "0-1"]
[WhiteElo "1418"]
[BlackElo "2438"]
[PlyCount "64"]
[EventDate "2021.??.??"]
[TimeControl "90/40+30:0"]
[WhiteClock "0:39:27"]
[BlackClock "0:25:16"]

1. e4 {[%emt 0:00:04]} c5 {[%emt 0:00:07]} 2. Nc3 {[%emt 0:00:16]} Nc6 {[%emt
0:00:09]} 3. g3 {[%emt 0:00:30]} g6 {[%emt 0:00:38]} 4. Bg2 {[%emt 0:00:14]}
Bg7 {[%emt 0:00:07]} 5. d3 {[%emt 0:00:50]} d6 {[%emt 0:00:23]} 6. f4 {[%emt 0:
00:44]} e6 {[%emt 0:00:20]} 7. Nf3 {[%emt 0:00:29]} Nge7 {[%emt 0:00:09]} 8.
O-O {[%emt 0:00:36]} O-O {[%emt 0:00:06]} 9. Rb1 {[%emt 0:04:45]} Rb8 {[%emt 0:
04:00]} 10. Ne2 {[%emt 0:05:15]} Nd4 {[%emt 0:09:13]} 11. c3 {[%emt 0:00:58]}
Nxf3+ {[%emt 0:00:06]} 12. Bxf3 {[%emt 0:01:06]} b6 {[%emt 0:06:17]} 13. d4 {
[%emt 0:01:21]} Bb7 {[%emt 0:01:11]} 14. Be3 {[%emt 0:03:03]} Qc7 {[%emt 0:03:
09]} 15. Rc1 {[%emt 0:02:52]} f5 {[%emt 0:07:05]} 16. Qd3 {[%emt 0:03:01]} c4 {
[%emt 0:04:24]} 17. Qc2 {[%emt 0:00:21]} fxe4 {[%emt 0:04:19]} 18. Bxe4 {[%emt
0:00:11]} Nd5 {[%emt 0:00:34]} 19. Bf2 {[%emt 0:03:31]} Nf6 {[%emt 0:01:18]}
20. Bxb7 {[%emt 0:03:13]} Qxb7 {[%emt 0:00:09]} 21. b3 {[%emt 0:01:50]} b5 {
[%emt 0:01:42]} 22. bxc4 {[%emt 0:03:50]} bxc4 {[%emt 0:00:22]} 23. Rb1 {[%emt
0:01:47]} Qd5 {[%emt 0:16:57]} 24. Rb2 {[%emt 0:02:58]} Rxb2 {[%emt 0:03:43]}
25. Qxb2 {[%emt 0:00:06]} Qf3 {[%emt 0:02:43]} 26. Be1 {[%emt 0:06:12]} Qe4 {
[%emt 0:00:50]} 27. h3 {[%emt 0:02:50]} Nd5 {[%emt 0:01:05]} 28. Rf2 {[%emt 0:
01:11]} h5 {[%emt 0:03:10]} 29. h4 {[%emt 0:03:12]} Ne3 {[%emt 0:02:01]} 30.
Qb5 {[%emt 0:04:27]} Kh7 {[%emt 0:03:05]} 31. Qd7 {[%emt 0:02:13]} Rb8 {[%emt
0:00:41]} 32. f5 {[%emt 0:02:54]} Rb1 {[%emt 0:01:22]} 0-1

[Event "Panevezys ELITE Open 2021"]
[Site "Panevezys, Lithuania"]
[Date "2021.08.04"]
[Round "7.8"]
[White "Stremavicius, Pijus"]
[Black "Michailov, Andrej"]
[Result "1-0"]
[WhiteElo "2146"]
[BlackElo "1645"]
[PlyCount "109"]
[EventDate "2021.??.??"]
[TimeControl "90/40+30:0"]
[WhiteClock "1:07:24"]
[BlackClock "0:09:24"]

1. e4 {[%emt 0:00:02]} e5 {[%emt 0:00:05]} 2. Nf3 {[%emt 0:00:04]} Nc6 {[%emt
0:00:02]} 3. c3 {[%emt 0:00:06]} Nf6 {[%emt 0:01:33]} 4. d4 {[%emt 0:00:05]}
exd4 {[%emt 0:04:50]} 5. e5 {[%emt 0:00:15]} Nd5 {[%emt 0:05:48]} 6. Qb3 {
[%emt 0:00:39]} Nb6 {[%emt 0:00:45]} 7. cxd4 {[%emt 0:00:05]} d6 {[%emt 0:06:
05]} 8. Bb5 {[%emt 0:00:10]} Bd7 {[%emt 0:00:17]} 9. Nc3 {[%emt 0:01:55]} Be7 {
[%emt 0:04:22]} 10. Bxc6 {[%emt 0:10:16]} Bxc6 {[%emt 0:00:38]} 11. d5 {[%emt
0:00:28]} Bd7 {[%emt 0:00:22]} 12. e6 {[%emt 0:00:11]} fxe6 {[%emt 0:00:48]}
13. dxe6 {[%emt 0:00:08]} Bc6 {[%emt 0:01:16]} 14. Nd4 {[%emt 0:00:05]} O-O {
[%emt 0:02:09]} 15. Nxc6 {[%emt 0:00:17]} bxc6 {[%emt 0:00:03]} 16. O-O {[%emt
0:00:36]} d5 {[%emt 0:01:01]} 17. f4 {[%emt 0:01:10]} g6 {[%emt 0:10:57]} 18.
f5 {[%emt 0:11:05]} gxf5 {[%emt 0:07:10]} 19. Ne2 {[%emt 0:01:50]} Qd6 {[%emt
0:05:42]} 20. Nd4 {[%emt 0:08:12]} Qe5 {[%emt 0:01:59]} 21. Nxc6 {[%emt 0:01:
36]} Bc5+ {[%emt 0:01:30]} 22. Kh1 {[%emt 0:00:10]} Qxe6 {[%emt 0:00:20]} 23.
Qg3+ {[%emt 0:00:17]} Qg6 {[%emt 0:04:54]} 24. Bf4 {[%emt 0:02:13]} Qxg3 {
[%emt 0:03:37]} 25. Bxg3 {[%emt 0:00:05]} Rf6 {[%emt 0:05:12]} 26. b4 {[%emt 0:
00:20]} Bf8 {[%emt 0:08:55]} 27. b5 {[%emt 0:00:06]} a6 {[%emt 0:00:36]} 28.
Bxc7 {[%emt 0:00:59]} axb5 {[%emt 0:00:35]} 29. Nd4 {[%emt 0:00:21]} Bg7 {
[%emt 0:04:40]} 30. Be5 {[%emt 0:02:01]} Rf7 {[%emt 0:02:33]} 31. Bxg7 {[%emt
0:00:09]} Kxg7 {[%emt 0:00:02]} 32. Nxb5 {[%emt 0:03:01]} Nc4 {[%emt 0:02:41]}
33. Nd4 {[%emt 0:01:05]} Kg6 {[%emt 0:00:30]} 34. h3 {[%emt 0:00:50]} Ra3 {
[%emt 0:00:51]} 35. Rf2 {[%emt 0:00:11]} Rd3 {[%emt 0:06:10]} 36. Ne6 {[%emt 0:
01:10]} Ra3 {[%emt 0:01:46]} 37. Nf4+ {[%emt 0:00:17]} Kg5 {[%emt 0:00:22]} 38.
Nxd5 {[%emt 0:00:20]} Rfa7 {[%emt 0:00:32]} 39. Nf4 {[%emt 0:01:56]} Nd6 {
[%emt 0:01:27]} 40. Ne6+ {[%emt 0:04:58]} Kg6 {[%emt 0:01:05]} 41. Rb2 {[%emt
0:04:04]} Kf6 {[%emt 0:04:13]} 42. Nd4 {[%emt 0:00:37]} R3a4 {[%emt 0:04:44]}
43. Nf3 {[%emt 0:02:50]} Ra3 {[%emt 0:01:08]} 44. Kh2 {[%emt 0:01:38]} R7a6 {
[%emt 0:00:59]} 45. Rc2 {[%emt 0:01:13]} Ne4 {[%emt 0:00:56]} 46. Rc7 {[%emt 0:
01:47]} Rxa2 {[%emt 0:01:14]} 47. Rb1 {[%emt 0:00:13]} Re6 {[%emt 0:09:25]} 48.
Rxh7 {[%emt 0:01:06]} Kg6 {[%emt 0:00:20]} 49. Rbb7 {[%emt 0:00:16]} Nd6 {
[%emt 0:00:37]} 50. Rbg7+ {[%emt 0:01:38]} Kf6 {[%emt 0:00:04]} 51. Rd7 {[%emt
0:00:12]} Kg6 {[%emt 0:01:04]} 52. Nd4 {[%emt 0:00:44]} Re4 {[%emt 0:01:03]}
53. Nf3 {[%emt 0:00:46]} Re6 {[%emt 0:02:07]} 54. h4 {[%emt 0:00:42]} f4 {
[%emt 0:05:59]} 55. h5+ {[%emt 0:03:06]} 1-0

[Event "Panevezys ELITE Open 2021"]
[Site "Panevezys, Lithuania"]
[Date "2021.08.04"]
[Round "7.9"]
[White "Sedykh, Mikhail"]
[Black "Bazevicius, Albertas"]
[Result "1-0"]
[WhiteElo "2119"]
[BlackElo "1867"]
[PlyCount "95"]
[EventDate "2021.??.??"]
[TimeControl "90/40+30:0"]
[WhiteClock "0:27:19"]
[BlackClock "0:28:24"]

1. d4 {[%emt 0:00:03]} Nf6 {[%emt 0:00:07]} 2. c4 {[%emt 0:00:05]} e6 {[%emt 0:
00:06]} 3. Nc3 {[%emt 0:00:05]} Bb4 {[%emt 0:00:10]} 4. Qc2 {[%emt 0:00:06]} c5
{[%emt 0:00:46]} 5. dxc5 {[%emt 0:00:06]} Bxc5 {[%emt 0:00:52]} 6. Nf3 {[%emt
0:00:38]} O-O {[%emt 0:01:30]} 7. Bg5 {[%emt 0:02:24]} h6 {[%emt 0:00:09]} 8.
Bh4 {[%emt 0:00:11]} g5 {[%emt 0:02:14]} 9. Bg3 {[%emt 0:00:25]} d5 {[%emt 0:
03:17]} 10. e3 {[%emt 0:12:29]} Nc6 {[%emt 0:00:40]} 11. a3 {[%emt 0:02:06]}
Qa5 {[%emt 0:02:25]} 12. Nd2 {[%emt 0:24:25]} Bb4 {[%emt 0:07:13]} 13. Rc1 {
[%emt 0:09:47]} Bxc3 {[%emt 0:04:11]} 14. Qxc3 {[%emt 0:00:03]} Qxc3 {[%emt 0:
08:37]} 15. Rxc3 {[%emt 0:00:02]} e5 {[%emt 0:07:15]} 16. cxd5 {[%emt 0:06:07]}
Nxd5 {[%emt 0:00:18]} 17. Rc5 {[%emt 0:00:10]} Be6 {[%emt 0:05:44]} 18. Bb5 {
[%emt 0:00:41]} f6 {[%emt 0:04:59]} 19. Ke2 {[%emt 0:09:59]} Nde7 {[%emt 0:05:
16]} 20. f3 {[%emt 0:01:40]} Rfd8 {[%emt 0:04:06]} 21. Rhc1 {[%emt 0:03:19]} a6
{[%emt 0:02:57]} 22. Bc4 {[%emt 0:04:30]} Bxc4+ {[%emt 0:02:30]} 23. R5xc4 {
[%emt 0:06:55]} Kf7 {[%emt 0:10:10]} 24. Bf2 {[%emt 0:02:29]} Rd7 {[%emt 0:03:
47]} 25. Ne4 {[%emt 0:01:20]} Rad8 {[%emt 0:00:24]} 26. R4c2 {[%emt 0:01:07]}
Rc7 {[%emt 0:09:04]} 27. Be1 {[%emt 0:01:30]} b6 {[%emt 0:01:37]} 28. Bb4 {
[%emt 0:01:40]} f5 {[%emt 0:06:37]} 29. Bxe7 {[%emt 0:01:05]} Kxe7 {[%emt 0:01:
13]} 30. Rxc6 {[%emt 0:00:31]} Rxc6 {[%emt 0:00:06]} 31. Rxc6 {[%emt 0:00:02]}
fxe4 {[%emt 0:00:17]} 32. Rxb6 {[%emt 0:00:11]} exf3+ {[%emt 0:00:10]} 33. Kxf3
{[%emt 0:00:34]} h5 {[%emt 0:02:45]} 34. Rxa6 {[%emt 0:04:04]} Rd2 {[%emt 0:00:
29]} 35. b4 {[%emt 0:01:22]} e4+ {[%emt 0:01:25]} 36. Kxe4 {[%emt 0:02:03]}
Rxg2 {[%emt 0:00:02]} 37. h3 {[%emt 0:01:50]} h4 {[%emt 0:01:36]} 38. Kf5 {
[%emt 0:00:37]} Rg3 {[%emt 0:00:30]} 39. e4 {[%emt 0:00:37]} g4 {[%emt 0:00:59]
} 40. hxg4 {[%emt 0:00:30]} h3 {[%emt 0:00:02]} 41. a4 {[%emt 0:01:20]} Ra3 {
[%emt 0:01:12]} 42. Ra7+ {[%emt 0:04:10]} Kd6 {[%emt 0:02:04]} 43. Ra6+ {[%emt
0:01:56]} Kc7 {[%emt 0:01:24]} 44. b5 {[%emt 0:00:53]} h2 {[%emt 0:01:52]} 45.
Rh6 {[%emt 0:00:39]} Rxa4 {[%emt 0:01:22]} 46. Rxh2 {[%emt 0:00:11]} Rb4 {
[%emt 0:00:44]} 47. Rd2 {[%emt 0:00:18]} Rxb5+ {[%emt 0:00:04]} 48. e5 {[%emt
0:00:13]} 1-0